Cogmind - Beta 13 @@@ ROGUE MODE // 2024.05.19 @ 17:01:40 Player: Occam Result: Destroyed by Enhanced Grunt with Neutron Cannon Performance ------------- Evolutions (3) 1500 Regions Visited (11) 2200 Robots Destroyed (205) 1025 Value Destroyed (5034) 5034 Prototype IDs (19) 380 Alien Tech Used (0) 0 Bonus (533) 533 TOTAL SCORE: 10672 Bonus ------- High Alert Combat Kills 33 Follower Combat Kills 237 Met Data Miner 300 Friendly Fire -37 Cogmind --------- Core Integrity 0/700 Matter 166/300 Energy 100/100 System Corruption 13% Temperature Cool (0) Movement Core (1450) Ox28 Location -7/Data Miner Parts ------- > --- POWER (1) -------- (None) > --- PROPULSION (2) --- (None) > --- UTILITY (7) ------ Huge Storage Unit Machine Analyzer Seismic Detector (fused) Improved Utility Shielding > --- WEAPON (3) ------- Great Maul > --- INVENTORY (25) --- Light Angular Momentum Engine Carbon-fiber Leg Improved Cooling System Large Matter Pod (138) Improved Signal Interpreter Energy Filter System Shield Authchip [Device] Trap Extractor (4/4 Blade) Trap Extractor (0/4) Improved EM Pulse Cannon Improved EM Pulse Cannon Improved Assault Rifle Gauss Rifle Gauss Rifle Gauss Rifle Rocket Launcher Rocket Launcher Improved Datajack Dirty Bomb Trap Peak State ------------ > --- POWER ------------ Reinforced Ion Engine > --- PROPULSION ------- Armored Treads Advanced Treads > --- UTILITY ---------- Huge Storage Unit Structural Scanner Machine Analyzer Hardened Heavy Armor Plating Hacking Suite Hacking Suite > --- WEAPON ----------- Improved Assault Rifle Enhanced Autogun Gauss Rifle > --- INVENTORY -------- Reinforced Ion Engine Improved Cooling System Large Matter Pod Improved Signal Interpreter Seismic Detector Energy Filter Medium Armor Plating Medium Armor Plating Hardened Light Armor Plating Improved Shield Generator System Shield Authchip [Device] Trap Extractor Trap Extractor Improved EM Pulse Cannon Improved EM Pulse Cannon Gauss Rifle Gauss Rifle Rocket Launcher Rocket Launcher Improved Datajack Great Maul Dirty Bomb Trap [Rating: 44] Favorites ----------- Power Reinforced Ion Engine Engine Reinforced Ion Engine Propulsion Improved Treads Treads Improved Treads Leg Carbon-fiber Leg Wheel Compact Wheel Hover Unit Improved Hover Unit Utility Structural Scanner Device Structural Scanner Storage Huge Storage Unit Processor Machine Analyzer Hackware Hacking Suite Protection Hardened Light Armor Plating Weapon Improved Assault Rifle Energy Gun Medium Laser Energy Cannon Heavy Particle Cannon Ballistic Gun Improved Assault Rifle Ballistic Cannon Improved Light Cannon Launcher Rocket Launcher Impact Weapon Great Maul Special Melee Weapon Datajack Build | -11 -10 -10 -9 -9 -9 -8 -8 -7 -7 -7 -7 ------- Run | Yrd Mat Min Mat Min Exi Min Mat Fac Low Low Dat Slots Evolved 6 | . . . 2 . . . 2 2 . . . Power . | . . . . . . . . . . . . Propulsion . | . . . . . . . . . . . . Utility 5 | . . . 1 . . . 2 2 . . . Weapon 1 | . . . 1 . . . . . . . . Parts Attached 157 | 1 15 1 27 4 . 1 42 35 21 4 6 Power 6 | . 2 . 1 . . . 2 . 1 . . Engine 6 | . 2 . 1 . . . 2 . 1 . . Core . | . . . . . . . . . . . . Reactor . | . . . . . . . . . . . . Propulsion 27 | . 6 . 5 . . 1 8 5 1 1 . Treads 22 | . 6 . 5 . . 1 6 3 1 . . Leg 1 | . . . . . . . . . . 1 . Wheel 3 | . . . . . . . 1 2 . . . Hover 1 | . . . . . . . 1 . . . . Flight . | . . . . . . . . . . . . Utility 65 | 1 3 1 7 2 . . 18 17 10 1 5 Device 33 | 1 2 1 4 1 . . 6 9 8 . 1 Storage 5 | . 1 . 1 . . . 1 2 . . . Processor 2 | . . . . 1 . . . 1 . . . Hackware 2 | . . . . . . . 1 1 . . . Protection 23 | . . . 2 . . . 10 4 2 1 4 Artifact . | . . . . . . . . . . . . Weapon 59 | . 4 . 14 2 . . 14 13 9 2 1 Energy Gun 5 | . 2 . 1 1 . . 1 . . . . Energy Cannon 1 | . . . . . . . 1 . . . . Ballistic Gun 41 | . 2 . 12 1 . . 10 10 4 2 . Ballistic Cannon 1 | . . . . . . . 1 . . . . Launcher 3 | . . . . . . . . . 3 . . Special Weapon . | . . . . . . . . . . . . Impact Weapon 6 | . . . . . . . 1 2 2 . 1 Slashing Weapon . | . . . . . . . . . . . . Piercing Weapon . | . . . . . . . . . . . . Special Melee Weapon 2 | . . . 1 . . . . 1 . . . Unidentified Prototypes 3 | . . . 2 . . . 1 . . . . Parts Lost 28 | . 1 . 2 . . 1 3 3 7 3 8 Power 2 | . . . . . . . . . 1 . 1 Propulsion 7 | . . . . . . 1 . 2 1 1 2 Utility 16 | . 1 . 1 . . . 2 1 5 1 5 Weapon 3 | . . . 1 . . . 1 . . 1 . Highest Loss Streak 8 | . 1 . 1 . . 1 1 1 5 2 8 To Critical Strikes . | . . . . . . . . . . . . Average Slot Usage (%) 97 | . 99 100 99 100 100 99 99 99 97 91 69 Engine 9 | . 14 14 11 11 11 11 9 7 6 7 7 Treads 17 | . 26 28 22 22 22 21 15 7 9 7 6 Leg 1 | . . . . . . . . . . 6 6 Wheel 1 | . . . . . . . 2 6 4 . . Device 12 | . 13 14 14 9 . . 15 15 14 12 7 Storage 9 | . 14 14 11 11 11 11 9 7 7 7 7 Processor 3 | . . . . 1 11 11 1 7 7 7 7 Hackware 3 | . . . . . . . 5 14 11 . . Protection 9 | . . . 6 11 11 11 13 6 8 17 22 Ballistic Gun 26 | . 20 28 32 33 33 33 26 22 21 23 . Naked Turns . | . . . . . . . . . . . . Heaviest Build 132 | 12 35 35 65 65 64 64 111 113 130 132 124 Greatest Support 46 | 20 40 40 46 46 46 46 43 42 42 42 22 Greatest Overweight (x) 7 | . 1 . 1 1 1 1 6 7 6 5 5 Average Overweight (x) 2 | . . . . 1 1 1 2 5 5 4 4 Largest Inventory Capacity 25 | 8 15 15 20 20 20 20 25 25 25 25 25 Average Capacity 20 | 8 12 15 15 20 20 20 21 25 25 25 25 Most Carried 25 | 6 15 15 19 20 20 20 25 25 25 24 24 Average Carried 19 | 6 11 14 15 19 20 19 20 24 23 21 23 Final Capacity 25 | 8 15 15 20 20 20 20 25 25 25 25 25 Final Carried 25 | 6 15 15 19 20 20 20 25 25 23 21 20 Class Distribution -------------------- 33% | Tank 18% | Mutant 17% | Trapper-Tank 10% | Scavenger-Tank 9% | Hacker-Tank 5% | Skirmisher 3% | Trapper-Mutant Dominant Class ---------------- Mutant | -10/Materials Mutant | -10/Mines Tank | -9/Materials Tank | -9/Mines Tank | -9/Exiles Tank | -8/Mines Scavenger-Tank | -8/Materials Hacker-Tank | -7/Factory Trapper-Tank | -7/Lower Caves Trapper-Tank | -7/Lower Caves Trapper-Mutant | -7/Data Miner Resources | -11 -10 -10 -9 -9 -9 -8 -8 -7 -7 -7 -7 ----------- Run | Yrd Mat Min Mat Min Exi Min Mat Fac Low Low Dat Matter Collected 6385 | 216 387 154 1396 180 3 200 1475 1019 855 500 . Remotely 26 | . . . . . . . 26 . . . . Salvage Created 7840 | 158 1007 191 1808 109 . 157 1942 1295 689 411 73 Parts 455 | 8 62 25 107 17 . 15 111 61 26 22 1 Haulers Intercepted 10 | . 1 . 6 . . . 3 . . . . Recyclers Shooed 12 | 1 2 . 3 . . . 1 5 . . . Parts Field Recycled . | . . . . . . . . . . . . Retrieved Matter . | . . . . . . . . . . . . Parts Self-Destructed 44 | . . . . . . . . . 23 21 . Prevented 4 | . . . . . . . . . . 4 . Kills | -11 -10 -10 -9 -9 -9 -8 -8 -7 -7 -7 -7 ------- Run | Yrd Mat Min Mat Min Exi Min Mat Fac Low Low Dat Combat Hostiles Destroyed 133 | . 19 8 27 7 . 6 26 17 15 7 1 Guns 126 | . 19 8 27 7 . 6 26 17 9 7 . AOE 6 | . . . . . . . . . 6 . . Classes Destroyed 16 | 2 7 1 2 . . 1 . 1 1 1 . Worker 13 | . 1 . 8 . . . 2 2 . . . Builder 4 | . . 1 . 1 . . 2 . . . . Tunneler 13 | 3 1 3 2 . . . 4 . . . . Hauler 10 | . 1 . 6 . . . 3 . . . . Recycler 16 | 1 1 . 3 . . . 5 6 . . . Mechanic 1 | . 1 . . . . . . . . . . Operator 3 | . 2 . . . . . 1 . . . . Watcher 12 | . 3 . 5 . . . 4 . . . . Swarmer 49 | . 3 8 13 7 . 4 6 3 . 5 . Grunt 50 | . 16 . 4 . . 1 12 5 10 2 . Brawler 2 | . . . 1 . . . 1 . . . . Sentry 17 | . . . 9 . . . 6 2 . . . Hunter 7 | . . . . . . 1 1 4 1 . . Programmer 3 | . . . . . . . . 3 . . . Behemoth 1 | . . . . . . . . . 1 . . Enhanced Grunt 1 | . . . . . . . . . . . 1 Packrat 1 | . . . . . . . . . 1 . . Samaritan 2 | . . . . . . . . . . 2 . Thug 1 | . . . . . . . . . 1 . . Savage 2 | . . . . . . . . . 2 . . Best Kill Streak 6 | 2 3 4 6 4 . 3 6 6 4 3 1 Combat Bots Only 4 | . 3 3 4 4 . 3 4 3 4 3 1 Max Kills in Single Turn 2 | 1 2 1 2 1 . 1 2 2 2 2 1 Gunslinging 1 | . . . 1 . . . 1 . . 1 . Exploded 2 | . . . . . . . . . 2 . . Melee . | . . . . . . . . . . . . Uniques/NPCs Destroyed . | . . . . . . . . . . . . Combat | -11 -10 -10 -9 -9 -9 -8 -8 -7 -7 -7 -7 -------- Run | Yrd Mat Min Mat Min Exi Min Mat Fac Low Low Dat Hostile Shots Fired 782 | . 83 19 107 28 . 30 113 234 88 37 43 Missed 224 | . 18 6 25 8 . 9 28 80 33 9 8 Damage Taken 8118 | . 737 112 938 166 . 265 1235 1649 1037 428 1551 Core 1239 | . 132 17 177 28 . 16 161 243 87 17 361 Absorbed by Shields 349 | . . . . . . . 3 233 113 . . Redirected to Shielding 53 | . . . . . . . . . . . 53 Regen/Repaired (Parts) 706 | . 286 . 111 . . . 309 . . . . Core Remaining (%) 63 | 100 . 40 . . . 44 70 . . . . Volleys Fired 468 | 6 94 19 109 10 . 14 89 65 37 25 . Largest 3 | 2 2 2 3 3 . 3 3 3 3 3 . Hottest 90 | 70 90 40 69 69 . 69 74 74 81 84 . Shots Fired 1263 | 12 188 37 328 31 1 43 268 185 93 77 . Gun 1253 | 12 188 37 328 31 1 43 268 185 83 77 . Cannon . | . . . . . . . . . . . . Launcher 10 | . . . . . . . . . 10 . . Special . | . . . . . . . . . . . . Kinetic 1174 | 6 115 37 328 31 1 43 268 185 83 77 . Thermal 79 | 6 73 . . . . . . . . . . Explosive 10 | . . . . . . . . . 10 . . Electromagnetic . | . . . . . . . . . . . . Robot Hit Streak 28 | 6 16 5 28 9 . 9 17 17 11 6 . Robot Miss Streak 7 | 1 4 2 7 4 1 4 3 5 3 7 . Penetration Max 1 | . . . . . . . . 1 . . . Secondary Targets 22 | . 4 . 4 3 . 1 3 3 2 2 . Max Gunslinging Chain 2 | . 1 . 2 1 . 1 1 1 1 1 . Shots Hit Robots 801 | 7 117 23 201 20 . 25 175 126 59 38 10 Core Hits 344 | 5 51 12 69 8 . 11 73 53 42 19 1 Critical Kills 8 | . . . . . . 1 4 . 1 2 . Critical Parts Destroyed 6 | . . . . . . 1 2 . . 1 2 Critical Strikes 19 | . 5 . . . . 2 6 . 1 3 2 Burn 5 | . 5 . . . . . . . . . . Destroy 12 | . . . . . . 2 6 . 1 3 . Smash 2 | . . . . . . . . . . . 2 Melee Attacks 28 | . . . . . . . 1 8 2 . 17 Impact 27 | . . . . . . . 1 7 2 . 17 Slashing . | . . . . . . . . . . . . Piercing . | . . . . . . . . . . . . Sneak Attacks 2 | . . . . . . . . 1 . . 1 Combat Hostiles . | . . . . . . . . . . . . Follow-up Attacks . | . . . . . . . . . . . . Damage Inflicted 13394 | 77 1343 318 3124 318 . 351 2858 1942 1743 793 527 Guns 11990 | 77 1343 318 3124 318 . 351 2858 1942 866 793 . Cannons . | . . . . . . . . . . . . Explosions 877 | . . . . . . . . . 877 . . Melee 527 | . . . . . . . . . . . 527 Ramming . | . . . . . . . . . . . . Kinetic 11357 | 14 773 318 3124 318 . 351 2858 1942 866 793 . Thermal 633 | 63 570 . . . . . . . . . . Explosive 877 | . . . . . . . . . 877 . . Electromagnetic . | . . . . . . . . . . . . Impact 527 | . . . . . . . . . . . 527 Slashing . | . . . . . . . . . . . . Piercing . | . . . . . . . . . . . . Highest Corruption 13 | . 2 2 3 3 3 3 8 8 13 13 13 Average Corruption 5 | . 2 2 2 3 3 3 6 5 8 13 13 Corruption Purged . | . . . . . . . . . . . . Corruption Blocked . | . . . . . . . . . . . . Effects 374 | . 3 12 52 28 9 20 57 15 60 89 29 Message Errors 100 | . 2 5 11 8 3 6 11 5 21 24 4 Matter Fused 96 | . 1 2 15 4 2 7 12 3 16 20 14 Heat Flow Errors 47 | . . 1 4 5 2 2 7 1 8 12 5 Energy Discharges 33 | . . 1 6 2 . 1 7 . 4 10 2 Parts Rejected 3 | . . . . . . . 2 . . 1 . Parts Fused 7 | . . 1 1 1 . . 1 . . 2 1 Data Loss (minor) 40 | . . . 8 4 . 3 8 2 4 8 3 Data Loss (major) 14 | . . . 3 1 . . 2 1 3 4 . Misfires 15 | . . . 1 1 1 1 4 . 3 4 . Alerts 10 | . . 1 3 2 1 . . 1 . 2 . Weapon Failures 9 | . . 1 . . . . 3 2 1 2 . Overload Shots . | . . . . . . . . . . . . Overflow Damage 251 | . . . . . . . . . . . 251 Projectiles . | . . . . . . . . . . . . Explosions . | . . . . . . . . . . . . Melee 251 | . . . . . . . . . . . 251 Knockbacks 4 | . . . . . . . . . . . 4 Impact 4 | . . . . . . . . . . . 4 Kinetic . | . . . . . . . . . . . . Secondary . | . . . . . . . . . . . . Self-Inflicted Damage 71 | . . . . . . . . . 71 . . Shots 2 | . . . . . . . . . 2 . . Rammed . | . . . . . . . . . . . . Targets Rammed . | . . . . . . . . . . . . Kicked . | . . . . . . . . . . . . Crushed . | . . . . . . . . . . . . Highest Temperature 366 | 50 222 193 242 265 267 225 366 118 297 348 252 Average Temperature 86 | 26 59 98 87 112 130 61 89 30 92 115 96 Received Heat Transfer 1602 | . 378 . 171 . . 45 495 276 210 27 . Effects 2 | . . . . . . . . . . 2 . Energy Bleed 1 | . . . . . . . . . . 1 . Interference 1 | . . . . . . . . . . 1 . Siege Activations . | . . . . . . . . . . . . Robots Corrupted . | . . . . . . . . . . . . Combat Hostiles . | . . . . . . . . . . . . Parts Fried 2 | . . . . . . . . . . . 2 Impact Corruptions 5 | . . . . . . . . . . . 5 Robots Melted . | . . . . . . . . . . . . Combat Hostiles . | . . . . . . . . . . . . Parts Melted 2 | . 2 . . . . . . . . . . Heat Transferred 2222 | 185 2037 . . . . . . . . . . Parts Sabotaged . | . . . . . . . . . . . . Parts Stolen . | . . . . . . . . . . . . Parts Stripped . | . . . . . . . . . . . . Power Chain Reactions . | . . . . . . . . . . . . Alert | -11 -10 -10 -9 -9 -9 -8 -8 -7 -7 -7 -7 ------- Run | Yrd Mat Min Mat Min Exi Min Mat Fac Low Low Dat Peak Influence 492 | 20 229 202 492 296 . 80 284 289 . . . Initial 136 | . 13 62 . 136 . . 16 117 . . . Average 151 | 11 116 77 324 75 . 35 145 121 . . . Maximum Alert Level 2 | . 1 1 2 1 . . 1 1 . . . Low Security (%) 67 | 100 89 99 10 80 . 100 63 85 . . . Level 1 26 | . 10 . 59 19 . . 36 14 . . . Level 2 6 | . . . 30 . . . . . . . . Level 3 . | . . . . . . . . . . . . Level 4 . | . . . . . . . . . . . . Level 5 . | . . . . . . . . . . . . High Security . | . . . . . . . . . . . . Max Security . | . . . . . . . . . . . . Squads Dispatched 25 | . 7 . 2 2 . . 7 7 . . . Investigation 13 | . 5 . 2 . . . 3 3 . . . Extermination 2 | . . . . . . . . 2 . . . Reinforcement 5 | . 2 . . . . . 1 2 . . . Assault 2 | . . . . 2 . . . . . . . Garrison 3 | . . . . . . . 3 . . . . Intercept . | . . . . . . . . . . . . Searches Triggered . | . . . . . . . . . . . . Construction Impeded . | . . . . . . . . . . . . Haulers Reinforced 1 | . . . . . . . . 1 . . . Active Scanning Responses . | . . . . . . . . . . . . Cargo Convoy Interrupts . | . . . . . . . . . . . . Stealth | -11 -10 -10 -9 -9 -9 -8 -8 -7 -7 -7 -7 --------- Run | Yrd Mat Min Mat Min Exi Min Mat Fac Low Low Dat Distress Signals 4 | . . . 3 . . . . 1 . . . Communications Jammed . | . . . . . . . . . . . . Distress Signals . | . . . . . . . . . . . . Times Spotted 176 | . 27 9 36 9 . 11 38 19 15 9 3 Peak Tracking Total 5 | . 4 3 5 4 . 4 5 4 4 3 3 Tactical Retreats 8 | . . 1 2 . . 2 1 . . 2 . Traps | -11 -10 -10 -9 -9 -9 -8 -8 -7 -7 -7 -7 ------- Run | Yrd Mat Min Mat Min Exi Min Mat Fac Low Low Dat Traps Triggered 11 | . 4 . . . . . 6 1 . . . Indirectly . | . . . . . . . . . . . . Trap Hack Attempts 21 | . . . 21 . . . . . . . . Triggered . | . . . . . . . . . . . . Disarmed . | . . . . . . . . . . . . Reprogrammed 4 | . . . 4 . . . . . . . . Reused 3 | . . . . . . . . . . . 3 Traps Extracted 8 | . . . 4 . . . . . 4 . . Installed 3 | . . . . . . . . . . . 3 Triggered 2 | . . . . . . . . . . 2 . Most Traps Carried 8 | . . . 4 4 4 4 4 4 8 8 8 Machines | -11 -10 -10 -9 -9 -9 -8 -8 -7 -7 -7 -7 ---------- Run | Yrd Mat Min Mat Min Exi Min Mat Fac Low Low Dat Machines Disabled 2 | . . . . . . . 1 . . . 1 Max in Single Turn 1 | . . . . . . . 1 . . . 1 Garrison Access 1 | . . . . . . . 1 . . . . Machines Repaired . | . . . . . . . . . . . . Machines Dismantled . | . . . . . . . . . . . . Machines Sabotaged . | . . . . . . . . . . . . Overloaded Fab Kills . | . . . . . . . . . . . . Hacking | -11 -10 -10 -9 -9 -9 -8 -8 -7 -7 -7 -7 --------- Run | Yrd Mat Min Mat Min Exi Min Mat Fac Low Low Dat Machines Accessed 51 | . 9 . 15 . 1 . 14 9 . . 3 Terminals 34 | . 6 . 11 . . . 11 6 . . . Fabricators 2 | . . . . . . . . 2 . . . Repair Stations 3 | . 1 . 1 . . . 1 . . . . Recycling Units 4 | . 2 . 1 . . . 1 . . . . Scanalyzers 2 | . . . 2 . . . . . . . . Garrison Access 2 | . . . . . . . 1 1 . . . Total Hacks 174 | . 28 . 48 . 1 . 42 32 . . 23 Successful 96 | . 15 . 19 . 1 . 22 16 . . 23 Failed 75 | . 13 . 28 . . . 19 15 . . . Catastrophic 14 | . 3 . 3 . . . 5 3 . . . Database Lockouts 3 | . . . 1 . . . 1 1 . . . Manual 83 | . 16 . 24 . . . 25 18 . . . Terminals 108 | . 16 . 35 . . . 35 22 . . . Fabricators 5 | . . . . . . . . 5 . . . Repair Stations 17 | . 8 . 5 . . . 4 . . . . Recycling Units 7 | . 4 . 1 . . . 2 . . . . Scanalyzers 7 | . . . 7 . . . . . . . . Garrison Access 6 | . . . . . . . 1 5 . . . Terminal Hacks 58 | . 3 . 6 . 1 . 13 12 . . 23 Record 7 | . . . . . 1 . . . . . 6 Part Schematic 12 | . . . . . . . . 3 . . 9 Robot Schematic 5 | . . . . . . . . . . . 5 Robot Analysis 6 | . 2 . 2 . . . 2 . . . . Prototype ID Bank 7 | . . . 1 . . . 3 . . . 3 Branch Access Points 1 | . . . . . . . . 1 . . . Terminal Index 3 | . 1 . 1 . . . 1 . . . . Fabricator Index 1 | . . . . . . . . 1 . . . Alert Level 3 | . . . 1 . . . 1 1 . . . Unreport Threat 4 | . . . . . . . 3 1 . . . Locate Traps 4 | . . . 1 . . . . 3 . . . Patrol Status 1 | . . . . . . . . 1 . . . Recall Investigation 1 | . . . . . . . 1 . . . . Hauler Manifests 1 | . . . . . . . 1 . . . . Zone Layout 2 | . . . . . . . 1 1 . . . Fabricator Hacks 1 | . . . . . . . . 1 . . . Load Schematic 1 | . . . . . . . . 1 . . . Repair Station Hacks 15 | . 7 . 4 . . . 4 . . . . Scan Component 8 | . 4 . 2 . . . 2 . . . . Repair 7 | . 3 . 2 . . . 2 . . . . Recycling Unit Hacks 3 | . 2 . 1 . . . . . . . . Report Inventory 2 | . 1 . 1 . . . . . . . . Retrieve Components 1 | . 1 . . . . . . . . . . Scanalyzer 6 | . . . 6 . . . . . . . . Insert Component 3 | . . . 3 . . . . . . . . Analyze 3 | . . . 3 . . . . . . . . Garrison Access Hacks 1 | . . . . . . . 1 . . . . Seal Access 1 | . . . . . . . 1 . . . . Unauthorized Hacks 12 | . 3 . 2 . . . 4 3 . . . Terminals 10 | . 3 . 2 . . . 3 2 . . . Botnet 8 | . 2 . 2 . . . 2 2 . . . Operators 2 | . 1 . . . . . 1 . . . . Fabricators 1 | . . . . . . . . 1 . . . Recompile 1 | . . . . . . . . 1 . . . Repair Stations . | . . . . . . . . . . . . Recycling Units 1 | . . . . . . . 1 . . . . Reject 1 | . . . . . . . 1 . . . . Scanalyzers . | . . . . . . . . . . . . Garrison Access . | . . . . . . . . . . . . Data Cores Recovered . | . . . . . . . . . . . . Used . | . . . . . . . . . . . . Hacking Detections 40 | . 9 . 13 . . . 9 9 . . . Full Trace Events 10 | . 4 . 2 . . . 2 2 . . . Feedback Events 1 | . . . 1 . . . . . . . . Corruption 1 | . . . 1 . . . . . . . . Feedback Blocked . | . . . . . . . . . . . . Robot Schematics Acquired 5 | . . . . . . . . . . . 5 Robots Built . | . . . . . . . . . . . . Authchips . | . . . . . . . . . . . . Time . | . . . . . . . . . . . . Total Robot Build Rating . | . . . . . . . . . . . . Part Schematics Acquired 15 | . . . 3 . . . . 3 . . 9 Parts Built . | . . . . . . . . . . . . Authchips . | . . . . . . . . . . . . Time . | . . . . . . . . . . . . Total Part Build Rating . | . . . . . . . . . . . . Parts Repaired 7 | . 3 . 2 . . . 2 . . . . Time 263 | . 78 . 102 . . . 83 . . . . Parts Recycled . | . . . . . . . . . . . . Recycled Matter . | . . . . . . . . . . . . Retrieved Matter . | . . . . . . . . . . . . Retrieved Components 8 | . 8 . . . . . . . . . . Parts Scanalyzed 3 | . . . 3 . . . . . . . . Part Schematics Acquired 3 | . . . 3 . . . . . . . . Parts Damaged . | . . . . . . . . . . . . Bothacking | -11 -10 -10 -9 -9 -9 -8 -8 -7 -7 -7 -7 ------------ Run | Yrd Mat Min Mat Min Exi Min Mat Fac Low Low Dat Used RIF Installer . | . . . . . . . . . . . . Robots Hacked 1 | . . . . . . . . 1 . . . Non-combat 1 | . . . . . . . . 1 . . . Combat . | . . . . . . . . . . . . Robot Hacks Applied 1 | . . . . . . . . 1 . . . find_chute 1 | . . . . . . . . 1 . . . Relay Couplers Released . | . . . . . . . . . . . . Fabnet Peak Effective % . | . . . . . . . . . . . . Robots Rewired . | . . . . . . . . . . . . Allies Hacked . | . . . . . . . . . . . . Hacks Repelled . | . . . . . . . . . . . . Allies | -11 -10 -10 -9 -9 -9 -8 -8 -7 -7 -7 -7 -------- Run | Yrd Mat Min Mat Min Exi Min Mat Fac Low Low Dat Total Allies 4 | . . . . 4 . . . . . . . Largest Group 4 | . . . . 4 3 3 . . . . . Highest-Rated Group 71 | . . . . 71 55 55 . . . . . Highest-Rated Ally 31 | . . . . 31 31 31 . . . . . Total Orders . | . . . . . . . . . . . . Ally Attacks 34 | . . . . 14 8 12 . . . . . Total Damage 478 | . . . . 213 149 116 . . . . . Kills 10 | . . . . 2 5 3 . . . . . Allies Corrupted . | . . . . . . . . . . . . Allies Melted . | . . . . . . . . . . . . Intel | -11 -10 -10 -9 -9 -9 -8 -8 -7 -7 -7 -7 ------- Run | Yrd Mat Min Mat Min Exi Min Mat Fac Low Low Dat Robot Analysis Total 6 | . 2 . 2 . . . 2 . . . . Derelict Logs Recovered 7 | . . 3 . . . . . . 3 1 . Drone Launches . | . . . . . . . . . . . . Drone Recoveries . | . . . . . . . . . . . . Exploration | -11 -10 -10 -9 -9 -9 -8 -8 -7 -7 -7 -7 ------------- Run | Yrd Mat Min Mat Min Exi Min Mat Fac Low Low Dat Turns Passed 18772 | 70 1993 1200 2961 1976 492 1133 2774 1617 1659 2272 625 Spaces Moved 7165 | 17 925 548 1345 805 206 453 985 679 686 413 103 Core . | . . . . . . . . . . . . Treads 5571 | . 917 548 1345 805 206 453 648 10 123 413 103 Legs 25 | 17 8 . . . . . . . . . . Wheels 1569 | . . . . . . . 337 669 563 . . Hover . | . . . . . . . . . . . . Flight . | . . . . . . . . . . . . Fastest Speed 120 | 120 120 160 160 240 240 240 190 190 190 397 465 Average Speed 223 | 120 159 160 173 240 240 240 222 192 221 530 542 Slowest Speed 545 | 120 240 160 240 240 240 240 320 317 397 545 545 Overloaded Moves . | . . . . . . . . . . . . Propulsion Burnouts . | . . . . . . . . . . . . Robots Hopped . | . . . . . . . . . . . . Cave-ins Triggered . | . . . . . . . . . . . . Exploration Rate (%) 71 | 2 99 93 97 99 58 98 83 21 72 61 78 Regions Visited 11 Branch Regions 7 Pre-discovered Areas 3 | . . . . . 1 . . . . 1 1 Known Exits Taken 7 | . . 1 1 1 1 1 . 1 1 . . Unknown Exits Taken 4 | 1 1 . . . . . 1 . . 1 . Scrap Searched 7 | . . 1 . 1 . 1 . . 2 2 . Spaces Dug 10 | . . . . . . . 1 7 2 . . Terrain Destroyed 77 | . . . . . . . 3 7 65 2 . Melee 10 | . . . . . . . 1 7 2 . . Projectile 8 | . . . . . . . 2 . 5 1 . AOE 58 | . . . . . . . . . 58 . . Terrain Rammed . | . . . . . . . . . . . . Walls Destroyed . | . . . . . . . . . . . . Machines Disabled . | . . . . . . . . . . . . Actions | -11 -10 -10 -9 -9 -9 -8 -8 -7 -7 -7 -7 --------- Run | Yrd Mat Min Mat Min Exi Min Mat Fac Low Low Dat Total 8945 | 55 1265 835 1742 826 205 468 1368 843 761 442 135 Wait 933 | 32 196 262 200 5 . . 195 33 7 . 3 Move 7154 | 16 924 547 1344 804 205 452 984 678 685 412 103 Hop . | . . . . . . . . . . . . Pick Up 75 | . 18 3 18 1 . 1 21 6 6 1 . Fast Attach 48 | 1 9 . 7 2 . . 20 8 . 1 . Attach 48 | . 3 . 7 . . 1 14 8 8 3 4 Detach 25 | . 5 . 1 . . . 9 6 1 . 3 Swap 61 | . 3 1 13 2 . . 8 19 13 . 2 Drop 81 | . 13 3 22 2 . . 27 12 2 . . Fire 468 | 6 94 19 109 10 . 14 89 65 37 25 . Melee 28 | . . . . . . . 1 8 2 . 17 Ram . | . . . . . . . . . . . . Kick . | . . . . . . . . . . . . Crush . | . . . . . . . . . . . . Escape Stasis . | . . . . . . . . . . . . Rewire . | . . . . . . . . . . . . Trap 24 | . . . 21 . . . . . . . 3 Miscellaneous . | . . . . . . . . . . . . Route ------- -11/Scrapyard -10/Materials (discovered 4 exits: *Mat x3 / [*Min]) -10/Mines (discovered 2 exits: *Mat x2) -9/Materials (discovered 5 exits: *Mat x3 / *Min x2) -9/Mines (discovered 3 exits: *Mat x2 / *Exi) -9/Exiles -8/Mines (discovered 2 exits: *Mat x2) -8/Materials (discovered 2 exits: *Fac x2) -7/Factory (discovered 3 exits: *Sto / *Low x2) -7/Lower Caves -7/Lower Caves (discovered 2 exits: [*Fac] / *Dat) -7/Data Miner (discovered 1 exit: [*Pro]) History --------- Turn | Location | Event 10 | -11/Scrapyard | Discovered new exit (range 3) 71 | -11/Scrapyard | Entered Materials 306 | -10/Materials | Build established: Mutant 742 | -10/Materials | Discovered new exit (range 15) 1012 | -10/Materials | Discovered new exit (range 6) 1062 | -10/Materials | Repaired Lgt. Treads 1090 | -10/Materials | Repaired Med. Laser 1129 | -10/Materials | Repaired Lgt. Treads 1155 | -10/Materials | Core integrity fell below 50% 1315 | -10/Materials | Discovered new exit (range 3) 1606 | -10/Materials | Discovered new exit (range 14) 2064 | -10/Materials | Entered Mines 2134 | -10/Mines | Received a Rocket Launcher from a helpful Derelict 2243 | -10/Mines | Learned location of 1 exit from Materials 2323 | -10/Mines | Discovered new exit (range 5) 2468 | -10/Mines | Learned Materials stockpile data 2591 | -10/Mines | Identified exit to Materials 2617 | -10/Mines | Assembled infested the area 3264 | -10/Mines | Entered Materials 3264 | -9/Materials | Evolved 2 slots: Utility x1, Weapon x1 3265 | -9/Materials | Identified exit to Mines 3575 | -9/Materials | Build established: Skirmisher 3794 | -9/Materials | Discovered exit to Mines (range 16) 4573 | -9/Materials | Repaired Imp. Assault Rifle 4625 | -9/Materials | Repaired Imp. Assault Rifle 4690 | -9/Materials | Build established: Tank 4906 | -9/Materials | Discovered new exit (range 11) 5002 | -9/Materials | Central database locked down 5144 | -9/Materials | Discovered new exit (range 8) 5576 | -9/Materials | Discovered new exit (range 16) 6225 | -9/Materials | Entered Mines 6458 | -9/Mines | Core integrity fell below 50% 6701 | -9/Mines | Met a Derelict testing a Signal Generator 6904 | -9/Mines | Assisted by bots powering up and referring to "LRC-V3" 6954 | -9/Mines | Discovered new exit (range 13) 7313 | -9/Mines | Discovered new exit (range 14) 7969 | -9/Mines | Identified exit to Materials 8189 | -9/Mines | Deemed a non-threat by the Exiles lab entrance 8191 | -9/Mines | Discovered new exit (range 5) 8198 | -9/Mines | Identified exit to Exiles 8201 | -9/Mines | Entered Exiles 8201 | -9/Exiles | Found Exiles lab destroyed 8201 | -9/Exiles | Accompanied by 3 allies 8408 | -9/Exiles | Learned location of Zion (-6) 8667 | -9/Exiles | Discovered new exit (range 12) 8691 | -9/Exiles | Identified exit to Mines 8693 | -9/Exiles | Entered Mines 8693 | -8/Mines | Accompanied by 3 allies 8765 | -8/Mines | Discovered exit to Materials (range 8) 8806 | -8/Mines | Discovered exit to Materials (range 6) 9826 | -8/Mines | Entered Materials 9826 | -8/Materials | Evolved 2 slots: Utility x2 10202 | -8/Materials | Build established: Scavenger-Tank 10560 | -8/Materials | Discovered new exit (range 3) 10570 | -8/Materials | Central database locked down 10754 | -8/Materials | Garrison activated, responded to threat 11388 | -8/Materials | Repaired Imp. Assault Rifle 11421 | -8/Materials | Repaired Hrd. Light Armor Plating? 12182 | -8/Materials | Build established: Tank 12256 | -8/Materials | Discovered new exit (range 3) 12600 | -8/Materials | Entered Factory 12600 | -7/Factory | Evolved 2 slots: Utility x2 13034 | -7/Factory | Discovered new exit (range 15) 13205 | -7/Factory | Build established: Hacker-Tank 13237 | -7/Factory | Identified exit to Storage 13237 | -7/Factory | Identified exit to Lower Caves 13367 | -7/Factory | Central database locked down 14217 | -7/Factory | Entered Lower Caves 14869 | -7/Lower Caves | Build established: Trapper-Tank 15035 | -7/Lower Caves | Learned Factory stockpile data 15334 | -7/Lower Caves | Spotted B-75 Beast 15402 | -7/Lower Caves | Destroyed B-75 Beast 15429 | -7/Lower Caves | Lost 5 parts (1p1n3u) 15505 | -7/Lower Caves | Identified exit to Lower Caves 15530 | -7/Lower Caves | Learned Factory stockpile data 15565 | -7/Lower Caves | Ambushed by wild Derelicts 15576 | -7/Lower Caves | System corruption reached 10% 15876 | -7/Lower Caves | Entered another Lower Caves area 16175 | -7/Lower Caves | Discovered new exit (range 5) 16502 | -7/Lower Caves | Encountered a Warlord checkpoint 17990 | -7/Lower Caves | Discovered new exit (range 6) 18148 | -7/Lower Caves | Entered Data Miner 18150 | -7/Data Miner | Discovered new exit (range 6) 18254 | -7/Data Miner | Met Data Miner 18357 | -7/Data Miner | Learned location of Section 7 (-2) 18357 | -7/Data Miner | Acquired the access code to Warlord's prototype stash 18436 | -7/Data Miner | Build established: Trapper-Mutant 18439 | -7/Data Miner | Received God Mode back door access code from Data Miner 18678 | -7/Data Miner | Data Conduit disabled 18727 | -7/Data Miner | Core integrity fell below 50% 18769 | -7/Data Miner | Core integrity fell below 20% 18773 | -7/Data Miner | Destroyed by Enhanced Grunt with Neutron Cannon Last Messages --------------- 18740_ Med. Armor Plating destroyed. 18743_ System corrupted: Matter fused (-5). 18744_ Carbon-fiber Leg destroyed. 18752_ Destroyed Adv. Heat Sink. 18752_ Enhanced Grunt system corrupted by crushing effect. 18752_ Enhanced Grunt knocked back. 18753_ Enhanced Grunt system terminally corrupted. 18753_ Prototype Device fried. 18753_ Adv. Heat Sink fried. 18758_ Med. Armor Plating destroyed. 18760_ Hrd. Light Armor Plating destroyed. 18761_ Enhanced Grunt suffers critical hit (Smash). 18761_ Destroyed Adv. Particle Charger. 18761_ Enhanced Grunt system corrupted by crushing effect. 18763_ CGVLF TZDZU D% HTWUI&VFN=I#26S7DR 18764_ Adv. Treads destroyed. 18764_ Destroyed Prototype Device. 18764_ Enhanced Grunt system corrupted by crushing effect. 18766_ Hrd. Light Armor Plating destroyed. 18771_ Rnf. Ion Engine destroyed. Map ----- +----------------------------------------------------+ | | | | | | | | | | | | | | | | | | | | | | | | | | | | | ??????????????????????????????? | | ??????????????????????????????? | | ??????????????????????????????? | | ??????????????????????????????? | | ??????????????????????????????? | | ????#################?????????? | | ???##"""""""""""""""######????? | | ??##""""""""" """"""""###### | | ??#""" """"" ^ ^ ^ | | ??#""" g"" | | ??#"" g " | | ??#"! @" | | ??#%"""""" | | ??#""""""" """"""" | | ??#"""""""" """"##### | | ??##""""""" """""###???? | | ???##"""""""" "#####?????? | | ?????#######"## "#?????????? | | ???????????#"### "#?????????? | | ???????????#"### "#?????????? | | ???????????#"?# "#?????????? | | ?????????????## "#?????????? | | ?????????????# "#?????????? | | ?????????????### "#?????????? | | ???????????????# "##????????? | | ??????????????## ""#????????? | | ?????????????## ""#????????? | | ??????????##"#"X ""#????????? | | ??????????""""" "####?????? | | ??????????""""" X"""""?????? | | ??????????##"#"X "##"#?????? | | ???????????#"## X""""#?????? | | ??????????????## "##"#?????? | | ???????????????#######????????? | | ??????????????????????????????? | | ??????????????????????????????? | +----------------------------------------------------+ Best States ------------- Heat Dissipation 45 Energy Generation 14 Energy Capacity 265 Matter Stores 300 Matter Capacity 300 Sight Range 16 Terrain Scan Density 10 Armor Coverage 825 Utility Shielding 66 Evasion (%) 50 Recoil Reduction 2 Offensive Hacking 20 Authchip Count 1 Trap Extractor Capacity 4 Item Schematics ----------------- Rnf. Ion Engine | -9/Materials | Scanalyzed Structural Scanner | -9/Materials | Scanalyzed Hrd. Light Armor Plating | -9/Materials | Scanalyzed Powered Armor | -7/Factory | Hacked Imp. Utility Shielding | -7/Factory | Hacked Energy Filter | -7/Factory | Hacked Combat Drone Bay | -7/Data Miner | Free Lgt. Regenerative Plating | -7/Data Miner | Free Biomechanical Wings | -7/Data Miner | Free Exp. Utility Shielding | -7/Data Miner | Free Force Rifle | -7/Data Miner | Free Gyrokinetic Inverter | -7/Data Miner | Free Adv. Trap Extractor | -7/Data Miner | Free Lrn. Proton Cannon | -7/Data Miner | Free Imp. Arc Projector | -7/Data Miner | Free Robot Schematics ------------------ W-25 Informer | -7/Data Miner | Free E-15 Imp | -7/Data Miner | Free M-22 Extractor | -7/Data Miner | Free G-50 Soldier | -7/Data Miner | Free R-10 Processor | -7/Data Miner | Free Fabricated ------------ Nothing Alien Tech Used ----------------- None Achievements -------------- None Challenges ------------ None Game ------ Seed ForceHardcellCycler Manual? 0 Play Time 01:50:28 Cumulative 317.7 hours Start 2024.05.19 @ 15:07:58 End 2024.05.19 @ 17:01:40 Sessions 1 Manual Loads 0 Difficulty Rogue Special Mode None Game No. 193 Rogue 49 Adventurer 144 Explorer 0 Win Type - Total 4 Types 2/0/1/1/0/0/0/0/0 Lore% 64 Gallery% 78 Achievement% 64 Wizard Run 0 Options --------- Layout 0 ASCII 0 Keyboard 0 Movement Mouse Keybinds 0 Fullscreen 2 Font 20/SmallcapsGlow Map View 66x50 Zoom Use 0% Tactical HUD 1 Map Filters NONE Filters NONE Steam X RUN: 0c0d6c1d-4bc2-4c51-a4cc-f7b1933aabbe